[Event "Titled Tuesday Blitz January 25 2022"]
[White "Kretov, Evgenij"]
[Black "Babazada, Khazar"]
[WhiteFideId "4167821"]
[BlackFideId "13413554"]
[WhiteElo "2303"]
[BlackElo "2418"]
[Result "0-1"]
[Round "05"]
[TimeControl "180+1"]
[Date "2022.01.26"]
[WhiteClock "0:01:26"]
[BlackClock "0:01:16"]

1. d4 {[%clk 0:02:40]}  g6 {[%clk 0:02:59]} 2. c4 {[%clk 0:02:40]}  Bg7 {[%clk 0:03:00]} 3. Nc3 {[%clk 0:02:41]}  d6 {[%clk 0:03:00]} 4. e4 {[%clk 0:02:41]}  Nf6 {[%clk 0:03:01]} 5. Be2 {[%clk 0:02:40]}  O-O {[%clk 0:03:01]} 6. Bg5 {[%clk 0:02:40]}  Nbd7 {[%clk 0:02:57]} 7. Qd2 {[%clk 0:02:40]}  e5 {[%clk 0:02:54]} 8. d5 {[%clk 0:02:40]}  a5 {[%clk 0:02:52]} 9. O-O-O {[%clk 0:02:39]}  Nc5 {[%clk 0:02:51]} 10. f3 {[%clk 0:02:39]}  a4 {[%clk 0:02:47]} 11. g4 {[%clk 0:02:38]}  c6 {[%clk 0:02:07]} 12. dxc6 {[%clk 0:02:28]}  Be6 {[%clk 0:02:05]} 13. Qxd6 {[%clk 0:02:21]}  Qa5 {[%clk 0:02:05]} 14. Be3 {[%clk 0:02:15]}  b6 {[%clk 0:02:02]} 15. Nb5 {[%clk 0:02:05]}  a3 {[%clk 0:01:35]} 16. b3 {[%clk 0:02:01]}  Nxb3+ {[%clk 0:01:34]} 17. axb3 {[%clk 0:02:01]}  a2 {[%clk 0:01:34]} 18. Kc2 {[%clk 0:01:45]}  a1=Q {[%clk 0:01:34]} 19. Rxa1 {[%clk 0:01:42]}  Qxa1 {[%clk 0:01:35]} 20. Bc1 {[%clk 0:01:42]}  Ra2+ {[%clk 0:01:29]} 21. Kd1 {[%clk 0:01:42]}  Bh6 {[%clk 0:01:30]} 22. Ke1 {[%clk 0:01:36]}  Qxc1+ {[%clk 0:01:29]} 23. Kf2 {[%clk 0:01:36]}  Be3+ {[%clk 0:01:20]} 24. Kg3 {[%clk 0:01:31]}  Bxg1 {[%clk 0:01:18]} 25. Qxe5 {[%clk 0:01:29]}  Rxe2 {[%clk 0:01:17]} 26. Qxf6 {[%clk 0:01:26]}  Bf2+ {[%clk 0:01:16]} 27. Kg2 {[%clk 0:01:26]}  Bd4+ {[%clk 0:01:16]} 0-1


[Site "https://www.chess.com"]

[Event "Titled Tuesday Blitz January 25 2022"]
[White "Kucuksari, Kaan"]
[Black "Song, Michael"]
[WhiteFideId "6380166"]
[BlackFideId "2613190"]
[WhiteElo "2305"]
[BlackElo "2274"]
[Result "0-1"]
[Round "05"]
[TimeControl "180+1"]
[Date "2022.01.26"]
[WhiteClock "0:00:10"]
[BlackClock "0:01:24"]

1. d4 {[%clk 0:03:00]}  Nf6 {[%clk 0:03:00]} 2. c4 {[%clk 0:02:59]}  e6 {[%clk 0:03:00]} 3. g3 {[%clk 0:02:59]}  d5 {[%clk 0:02:58]} 4. Nf3 {[%clk 0:02:58]}  Be7 {[%clk 0:02:58]} 5. Bg2 {[%clk 0:02:57]}  O-O {[%clk 0:02:58]} 6. O-O {[%clk 0:02:58]}  c6 {[%clk 0:02:58]} 7. Qc2 {[%clk 0:02:58]}  b6 {[%clk 0:02:58]} 8. Bf4 {[%clk 0:02:56]}  Bb7 {[%clk 0:02:56]} 9. Rd1 {[%clk 0:02:55]}  Nbd7 {[%clk 0:02:56]} 10. Ne5 {[%clk 0:02:51]}  Rc8 {[%clk 0:02:52]} 11. Nc3 {[%clk 0:02:51]}  c5 {[%clk 0:02:41]} 12. cxd5 {[%clk 0:02:49]}  exd5 {[%clk 0:02:31]} 13. Rac1 {[%clk 0:02:32]}  cxd4 {[%clk 0:02:28]} 14. Rxd4 {[%clk 0:02:33]}  Bc5 {[%clk 0:02:28]} 15. Rdd1 {[%clk 0:02:32]}  Nxe5 {[%clk 0:02:22]} 16. Bxe5 {[%clk 0:02:32]}  Bxf2+ {[%clk 0:02:22]} 17. Kh1 {[%clk 0:02:33]}  Be3 {[%clk 0:02:15]} 18. Ra1 {[%clk 0:02:29]}  Ng4 {[%clk 0:02:13]} 19. Rf1 {[%clk 0:02:23]}  Nxe5 {[%clk 0:02:12]} 20. Rad1 {[%clk 0:02:13]}  Qe7 {[%clk 0:02:09]} 21. Bxd5 {[%clk 0:02:02]}  Rfd8 {[%clk 0:02:00]} 22. Qb3 {[%clk 0:01:48]}  Rxc3 {[%clk 0:01:51]} 23. bxc3 {[%clk 0:01:45]}  Rxd5 {[%clk 0:01:45]} 24. Rxd5 {[%clk 0:01:46]}  Qe6 {[%clk 0:01:40]} 25. Rd1 {[%clk 0:01:43]}  Ng4 {[%clk 0:01:27]} 26. Qa4 {[%clk 0:00:10]}  Qxd5+ {[%clk 0:01:24]} 0-1


[Site "https://www.chess.com"]

[Event "Titled Tuesday Blitz January 25 2022"]
[White "Loy, Konstantin"]
[Black "Gelman, Alexander"]
[WhiteFideId "14122499"]
[BlackFideId "4118316"]
[WhiteElo "2084"]
[BlackElo "2375"]
[Result "0-1"]
[Round "05"]
[TimeControl "180+1"]
[Date "2022.01.26"]
[WhiteClock "0:00:05"]
[BlackClock "0:00:17"]

1. e4 {[%clk 0:02:44]}  c5 {[%clk 0:02:59]} 2. Nf3 {[%clk 0:02:43]}  e6 {[%clk 0:02:59]} 3. d3 {[%clk 0:02:42]}  Nc6 {[%clk 0:02:58]} 4. g3 {[%clk 0:02:42]}  d5 {[%clk 0:02:58]} 5. Nbd2 {[%clk 0:02:41]}  Nf6 {[%clk 0:02:59]} 6. Bg2 {[%clk 0:02:41]}  Be7 {[%clk 0:02:59]} 7. O-O {[%clk 0:02:41]}  O-O {[%clk 0:02:59]} 8. Re1 {[%clk 0:02:41]}  Re8 {[%clk 0:02:59]} 9. e5 {[%clk 0:02:40]}  Nd7 {[%clk 0:02:59]} 10. Nf1 {[%clk 0:02:41]}  b5 {[%clk 0:02:59]} 11. h4 {[%clk 0:02:40]}  b4 {[%clk 0:02:58]} 12. h5 {[%clk 0:02:40]}  h6 {[%clk 0:02:58]} 13. Bf4 {[%clk 0:02:37]}  a5 {[%clk 0:02:58]} 14. Qd2 {[%clk 0:02:35]}  a4 {[%clk 0:02:56]} 15. g4 {[%clk 0:02:26]}  a3 {[%clk 0:02:56]} 16. b3 {[%clk 0:02:26]}  f6 {[%clk 0:02:43]} 17. exf6 {[%clk 0:02:19]}  Bxf6 {[%clk 0:02:43]} 18. g5 {[%clk 0:02:03]}  Bxa1 {[%clk 0:02:20]} 19. Rxa1 {[%clk 0:02:02]}  e5 {[%clk 0:02:15]} 20. Bg3 {[%clk 0:01:52]}  hxg5 {[%clk 0:02:01]} 21. Nxg5 {[%clk 0:01:48]}  Nf6 {[%clk 0:02:01]} 22. Re1 {[%clk 0:01:16]}  Ra7 {[%clk 0:01:59]} 23. Nh2 {[%clk 0:01:10]}  Bf5 {[%clk 0:01:43]} 24. Nhf3 {[%clk 0:00:56]}  Rae7 {[%clk 0:01:33]} 25. Nh4 {[%clk 0:00:54]}  Nd4 {[%clk 0:01:21]} 26. Ng6 {[%clk 0:00:50]}  Bxg6 {[%clk 0:01:17]} 27. hxg6 {[%clk 0:00:51]}  Qd7 {[%clk 0:01:14]} 28. Nf7 {[%clk 0:00:28]}  Qf5 {[%clk 0:01:07]} 29. Qd1 {[%clk 0:00:08]}  Qxg6 {[%clk 0:00:38]} 30. Nd6 {[%clk 0:00:06]}  Rd8 {[%clk 0:00:30]} 31. Bxe5 {[%clk 0:00:04]}  Rxe5 {[%clk 0:00:26]} 32. Rxe5 {[%clk 0:00:05]}  Rxd6 {[%clk 0:00:26]} 33. Kf1 {[%clk 0:00:04]}  Re6 {[%clk 0:00:23]} 34. Rxe6 {[%clk 0:00:04]}  Nxe6 {[%clk 0:00:23]} 35. Qf3 {[%clk 0:00:04]}  Qg5 {[%clk 0:00:18]} 36. Bh3 {[%clk 0:00:04]}  Nd4 {[%clk 0:00:16]} 37. Qg3 {[%clk 0:00:04]}  Qxg3 {[%clk 0:00:16]} 38. fxg3 {[%clk 0:00:05]}  Nxc2 {[%clk 0:00:17]} 39. Ke2 {[%clk 0:00:05]}  Nd4+ {[%clk 0:00:16]} 40. Ke3 {[%clk 0:00:05]}  Nxb3 {[%clk 0:00:17]} 41. axb3 {[%clk 0:00:05]}  a2 {[%clk 0:00:17]} 0-1


[Site "https://www.chess.com"]

[Event "Titled Tuesday Blitz January 25 2022"]
[White "Maevsky, Nikolay"]
[Black "Bryakin, Mikhail"]
[WhiteFideId "4198220"]
[BlackFideId "4165314"]
[WhiteElo "2104"]
[BlackElo "2421"]
[Result "1/2-1/2"]
[Round "05"]
[TimeControl "180+1"]
[Date "2022.01.26"]
[WhiteClock "0:00:03"]
[BlackClock "0:00:05"]

1. d4 {[%clk 0:03:00]}  Nf6 {[%clk 0:02:55]} 2. Nf3 {[%clk 0:03:01]}  g6 {[%clk 0:02:55]} 3. c4 {[%clk 0:03:00]}  d5 {[%clk 0:02:53]} 4. Nc3 {[%clk 0:02:53]}  Bg7 {[%clk 0:02:53]} 5. cxd5 {[%clk 0:02:53]}  Nxd5 {[%clk 0:02:54]} 6. e4 {[%clk 0:02:54]}  Nxc3 {[%clk 0:02:53]} 7. bxc3 {[%clk 0:02:55]}  c5 {[%clk 0:02:54]} 8. Rb1 {[%clk 0:02:55]}  O-O {[%clk 0:02:45]} 9. Be2 {[%clk 0:02:54]}  Nc6 {[%clk 0:02:45]} 10. d5 {[%clk 0:02:52]}  Ne5 {[%clk 0:02:42]} 11. Nxe5 {[%clk 0:02:47]}  Bxe5 {[%clk 0:02:42]} 12. c4 {[%clk 0:02:45]}  f5 {[%clk 0:02:41]} 13. exf5 {[%clk 0:02:32]}  gxf5 {[%clk 0:02:00]} 14. Rb3 {[%clk 0:02:26]}  b6 {[%clk 0:01:59]} 15. O-O {[%clk 0:02:15]}  Qd6 {[%clk 0:01:56]} 16. Rh3 {[%clk 0:02:13]}  f4 {[%clk 0:01:49]} 17. Bg4 {[%clk 0:02:13]}  Rf7 {[%clk 0:01:42]} 18. Re1 {[%clk 0:01:56]}  Rg7 {[%clk 0:01:10]} 19. Bxc8 {[%clk 0:01:45]}  Rxc8 {[%clk 0:01:11]} 20. Qh5 {[%clk 0:01:39]}  Bd4 {[%clk 0:00:48]} 21. Re6 {[%clk 0:01:26]}  Qc7 {[%clk 0:00:49]} 22. Rh6 {[%clk 0:00:51]}  Qe5 {[%clk 0:00:48]} 23. Re6 {[%clk 0:00:49]}  Qxh5 {[%clk 0:00:44]} 24. Rxh5 {[%clk 0:00:49]}  Rf8 {[%clk 0:00:39]} 25. Kf1 {[%clk 0:00:45]}  f3 {[%clk 0:00:34]} 26. g3 {[%clk 0:00:45]}  Rff7 {[%clk 0:00:33]} 27. h3 {[%clk 0:00:40]}  Rg6 {[%clk 0:00:32]} 28. Re4 {[%clk 0:00:37]}  Kg7 {[%clk 0:00:21]} 29. Be3 {[%clk 0:00:34]}  Bxe3 {[%clk 0:00:19]} 30. Rxe3 {[%clk 0:00:34]}  Rgf6 {[%clk 0:00:17]} 31. Rhe5 {[%clk 0:00:33]}  Kf8 {[%clk 0:00:18]} 32. Ke1 {[%clk 0:00:32]}  Ke8 {[%clk 0:00:18]} 33. Kd2 {[%clk 0:00:30]}  Kd7 {[%clk 0:00:18]} 34. Kd3 {[%clk 0:00:30]}  Rf5 {[%clk 0:00:17]} 35. R5e4 {[%clk 0:00:28]}  Rh5 {[%clk 0:00:17]} 36. h4 {[%clk 0:00:27]}  Rhf5 {[%clk 0:00:13]} 37. a4 {[%clk 0:00:27]}  R5f6 {[%clk 0:00:10]} 38. Re5 {[%clk 0:00:26]}  h6 {[%clk 0:00:10]} 39. Ke4 {[%clk 0:00:25]}  Kd6 {[%clk 0:00:09]} 40. Rd3 {[%clk 0:00:17]}  Kd7 {[%clk 0:00:05]} 41. Ke3 {[%clk 0:00:13]}  Kd6 {[%clk 0:00:06]} 42. Re4 {[%clk 0:00:13]}  Rg7 {[%clk 0:00:04]} 43. a5 {[%clk 0:00:13]}  Rgf7 {[%clk 0:00:03]} 44. axb6 {[%clk 0:00:12]}  axb6 {[%clk 0:00:04]} 45. Rb3 {[%clk 0:00:11]}  Kd7 {[%clk 0:00:05]} 46. Ra3 {[%clk 0:00:11]}  Kc7 {[%clk 0:00:03]} 47. Ra7+ {[%clk 0:00:10]}  Kd8 {[%clk 0:00:03]} 48. Rb7 {[%clk 0:00:08]}  Ke8 {[%clk 0:00:03]} 49. Re5 {[%clk 0:00:05]}  Kd8 {[%clk 0:00:03]} 50. Ke4 {[%clk 0:00:05]}  Ke8 {[%clk 0:00:03]} 51. Rb8+ {[%clk 0:00:04]}  Kd7 {[%clk 0:00:04]} 52. Rb7+ {[%clk 0:00:04]}  Kd8 {[%clk 0:00:04]} 53. Ra7 {[%clk 0:00:04]}  Ke8 {[%clk 0:00:04]} 54. Re6 {[%clk 0:00:04]}  Kf8 {[%clk 0:00:02]} 55. Ra8+ {[%clk 0:00:03]}  Kg7 {[%clk 0:00:02]} 56. Rxf6 {[%clk 0:00:03]}  Rxf6 {[%clk 0:00:02]} 57. Rb8 {[%clk 0:00:03]}  Kf7 {[%clk 0:00:03]} 58. Rb7 {[%clk 0:00:04]}  Ke8 {[%clk 0:00:03]} 59. Rb8+ {[%clk 0:00:04]}  Kf7 {[%clk 0:00:04]} 60. Rb7 {[%clk 0:00:04]}  Ke8 {[%clk 0:00:04]} 61. Ke5 {[%clk 0:00:04]}  Kf7 {[%clk 0:00:04]} 62. Ra7 {[%clk 0:00:04]}  h5 {[%clk 0:00:04]} 63. Ra3 {[%clk 0:00:05]}  Rg6 {[%clk 0:00:02]} 64. Rxf3+ {[%clk 0:00:04]}  Ke8 {[%clk 0:00:02]} 65. Rb3 {[%clk 0:00:04]}  Rf6 {[%clk 0:00:03]} 66. f4 {[%clk 0:00:04]}  Rg6 {[%clk 0:00:03]} 67. Ra3 {[%clk 0:00:04]}  Kf7 {[%clk 0:00:03]} 68. Rb3 {[%clk 0:00:03]}  Rf6 {[%clk 0:00:03]} 69. Re3 {[%clk 0:00:03]}  Rg6 {[%clk 0:00:03]} 70. Kf5 {[%clk 0:00:03]}  Rg8 {[%clk 0:00:03]} 71. Rd3 {[%clk 0:00:03]}  Rg6 {[%clk 0:00:03]} 72. Rb3 {[%clk 0:00:03]}  Kg7 {[%clk 0:00:03]} 73. Re3 {[%clk 0:00:02]}  Kf7 {[%clk 0:00:03]} 74. Re6 {[%clk 0:00:02]}  Rxg3 {[%clk 0:00:03]} 75. Rh6 {[%clk 0:00:02]}  Rc3 {[%clk 0:00:04]} 76. Rh7+ {[%clk 0:00:03]}  Ke8 {[%clk 0:00:04]} 77. Rxh5 {[%clk 0:00:02]}  Rxc4 {[%clk 0:00:04]} 78. Rh8+ {[%clk 0:00:01]}  Kd7 {[%clk 0:00:05]} 79. Rh7 {[%clk 0:00:02]}  Rd4 {[%clk 0:00:04]} 80. Ke5 {[%clk 0:00:02]}  Rd1 {[%clk 0:00:04]} 81. f5 {[%clk 0:00:02]}  Re1+ {[%clk 0:00:05]} 82. Kf4 {[%clk 0:00:03]}  Rf1+ {[%clk 0:00:05]} 83. Ke4 {[%clk 0:00:03]}  Re1+ {[%clk 0:00:05]} 84. Kd3 {[%clk 0:00:03]}  Kd6 {[%clk 0:00:05]} 85. h5 {[%clk 0:00:02]}  Kxd5 {[%clk 0:00:04]} 86. h6 {[%clk 0:00:02]}  c4+ {[%clk 0:00:03]} 87. Kd2 {[%clk 0:00:02]}  Re5 {[%clk 0:00:03]} 88. Rf7 {[%clk 0:00:01]}  Re4 {[%clk 0:00:02]} 89. h7 {[%clk 0:00:02]}  Rh4 {[%clk 0:00:03]} 90. Rxe7 {[%clk 0:00:02]}  Kd4 {[%clk 0:00:03]} 91. Rd7+ {[%clk 0:00:02]}  Ke5 {[%clk 0:00:03]} 92. f6 {[%clk 0:00:02]}  Kxf6 {[%clk 0:00:04]} 93. Kc3 {[%clk 0:00:03]}  b5 {[%clk 0:00:04]} 94. Rb7 {[%clk 0:00:03]}  Ke6 {[%clk 0:00:04]} 95. Rxb5 {[%clk 0:00:03]}  Rxh7 {[%clk 0:00:05]} 96. Kxc4 {[%clk 0:00:03]}  Rh4+ {[%clk 0:00:05]} 97. Kc5 {[%clk 0:00:03]} 1/2-1/2


[Site "https://www.chess.com"]

[Event "Titled Tuesday Blitz January 25 2022"]
[White "Maghsoodloo, Parham"]
[Black "Hasangatin, Ramil"]
[WhiteFideId "12539929"]
[BlackFideId "4122160"]
[WhiteElo "2630"]
[BlackElo "2375"]
[Result "1/2-1/2"]
[Round "05"]
[TimeControl "180+1"]
[Date "2022.01.26"]
[WhiteClock "0:01:04"]
[BlackClock "0:00:33"]

1. e4 {[%clk 0:03:00]}  c5 {[%clk 0:02:58]} 2. Nf3 {[%clk 0:03:00]}  e6 {[%clk 0:02:58]} 3. d4 {[%clk 0:03:00]}  cxd4 {[%clk 0:02:59]} 4. Nxd4 {[%clk 0:03:01]}  Nf6 {[%clk 0:03:00]} 5. Nc3 {[%clk 0:03:02]}  Nc6 {[%clk 0:03:00]} 6. Nxc6 {[%clk 0:03:03]}  dxc6 {[%clk 0:03:01]} 7. e5 {[%clk 0:03:04]}  Qxd1+ {[%clk 0:03:01]} 8. Nxd1 {[%clk 0:03:02]}  Ng4 {[%clk 0:02:34]} 9. Bf4 {[%clk 0:02:54]}  f6 {[%clk 0:02:34]} 10. f3 {[%clk 0:02:47]}  Nxe5 {[%clk 0:02:27]} 11. Bxe5 {[%clk 0:02:47]}  fxe5 {[%clk 0:02:28]} 12. Nf2 {[%clk 0:02:48]}  Bd6 {[%clk 0:02:18]} 13. O-O-O {[%clk 0:02:38]}  Ke7 {[%clk 0:02:18]} 14. Bc4 {[%clk 0:02:33]}  b5 {[%clk 0:02:12]} 15. Bb3 {[%clk 0:02:33]}  c5 {[%clk 0:02:06]} 16. Ne4 {[%clk 0:02:31]}  Rd8 {[%clk 0:02:05]} 17. c3 {[%clk 0:02:07]}  Bb7 {[%clk 0:02:05]} 18. Rhe1 {[%clk 0:02:07]}  Bxe4 {[%clk 0:01:46]} 19. Rxe4 {[%clk 0:02:07]}  c4 {[%clk 0:01:47]} 20. Bc2 {[%clk 0:02:07]}  h6 {[%clk 0:01:40]} 21. h4 {[%clk 0:02:05]}  Bc7 {[%clk 0:01:40]} 22. Rde1 {[%clk 0:02:05]}  Rf8 {[%clk 0:01:37]} 23. Rg4 {[%clk 0:02:04]}  Rf7 {[%clk 0:01:29]} 24. Ree4 {[%clk 0:01:53]}  Rg8 {[%clk 0:01:21]} 25. b3 {[%clk 0:01:48]}  cxb3 {[%clk 0:01:19]} 26. Bxb3 {[%clk 0:01:48]}  a6 {[%clk 0:01:08]} 27. a4 {[%clk 0:01:43]}  Bd6 {[%clk 0:01:07]} 28. axb5 {[%clk 0:01:43]}  axb5 {[%clk 0:01:08]} 29. Kb2 {[%clk 0:01:44]}  g5 {[%clk 0:01:05]} 30. hxg5 {[%clk 0:01:35]}  Rxg5 {[%clk 0:01:03]} 31. Rxg5 {[%clk 0:01:33]}  hxg5 {[%clk 0:01:03]} 32. Rg4 {[%clk 0:01:31]}  Kf6 {[%clk 0:01:03]} 33. Bc2 {[%clk 0:01:31]}  Rf8 {[%clk 0:00:54]} 34. Bd3 {[%clk 0:01:31]}  Rb8 {[%clk 0:00:53]} 35. Kb3 {[%clk 0:01:31]}  Rb7 {[%clk 0:00:40]} 36. Re4 {[%clk 0:01:31]}  Rb8 {[%clk 0:00:39]} 37. Bf1 {[%clk 0:01:30]}  Rb7 {[%clk 0:00:38]} 38. Bd3 {[%clk 0:01:21]}  Rb8 {[%clk 0:00:38]} 39. Re1 {[%clk 0:01:17]}  b4 {[%clk 0:00:38]} 40. c4 {[%clk 0:01:18]}  Ra8 {[%clk 0:00:38]} 41. Rh1 {[%clk 0:01:04]}  Ra3+ {[%clk 0:00:38]} 42. Kc2 {[%clk 0:01:05]}  Ra2+ {[%clk 0:00:35]} 43. Kb3 {[%clk 0:01:03]}  Ra3+ {[%clk 0:00:32]} 44. Kc2 {[%clk 0:01:03]}  Ra2+ {[%clk 0:00:33]} 45. Kb3 {[%clk 0:01:04]}  Ra3+ {[%clk 0:00:33]} 1/2-1/2


[Site "https://www.chess.com"]

[Event "Titled Tuesday Blitz January 25 2022"]
[White "Martinez Alcantara, Jose Eduardo"]
[Black "Dastan, Muhammed Batuhan"]
[WhiteFideId "3805662"]
[BlackFideId "6300014"]
[WhiteElo "2690"]
[BlackElo "2410"]
[Result "0-1"]
[Round "05"]
[TimeControl "180+1"]
[Date "2022.01.26"]
[WhiteClock "0:00:10"]
[BlackClock "0:00:22"]

1. e4 {[%clk 0:03:00]}  c5 {[%clk 0:02:58]} 2. Nf3 {[%clk 0:03:01]}  d6 {[%clk 0:02:58]} 3. c3 {[%clk 0:03:01]}  Nf6 {[%clk 0:02:58]} 4. h3 {[%clk 0:03:02]}  Nc6 {[%clk 0:02:58]} 5. Bd3 {[%clk 0:03:02]}  d5 {[%clk 0:02:59]} 6. e5 {[%clk 0:03:03]}  Nd7 {[%clk 0:02:59]} 7. Bb5 {[%clk 0:03:03]}  Qb6 {[%clk 0:02:59]} 8. Bxc6 {[%clk 0:03:03]}  Qxc6 {[%clk 0:02:55]} 9. d4 {[%clk 0:03:03]}  b6 {[%clk 0:02:49]} 10. O-O {[%clk 0:03:03]}  e6 {[%clk 0:02:50]} 11. Re1 {[%clk 0:03:01]}  Be7 {[%clk 0:02:49]} 12. Nbd2 {[%clk 0:02:59]}  O-O {[%clk 0:02:31]} 13. Nf1 {[%clk 0:02:59]}  f6 {[%clk 0:01:59]} 14. exf6 {[%clk 0:02:52]}  Nxf6 {[%clk 0:02:00]} 15. Bg5 {[%clk 0:02:46]}  Qe8 {[%clk 0:01:55]} 16. Ng3 {[%clk 0:02:42]}  Qg6 {[%clk 0:01:47]} 17. Qe2 {[%clk 0:02:30]}  h6 {[%clk 0:01:42]} 18. Bd2 {[%clk 0:02:22]}  Bd6 {[%clk 0:01:31]} 19. Ne5 {[%clk 0:02:18]}  Qc2 {[%clk 0:01:15]} 20. Bf4 {[%clk 0:01:50]}  Qxe2 {[%clk 0:01:14]} 21. Rxe2 {[%clk 0:01:50]}  Ba6 {[%clk 0:01:13]} 22. Ree1 {[%clk 0:01:51]}  cxd4 {[%clk 0:01:10]} 23. cxd4 {[%clk 0:01:51]}  Rfc8 {[%clk 0:01:09]} 24. Ng6 {[%clk 0:01:46]}  Bb4 {[%clk 0:01:03]} 25. Red1 {[%clk 0:01:22]}  Rc2 {[%clk 0:01:01]} 26. a3 {[%clk 0:01:21]}  Bf8 {[%clk 0:00:58]} 27. Nxf8 {[%clk 0:01:12]}  Kxf8 {[%clk 0:00:58]} 28. a4 {[%clk 0:01:07]}  Bc4 {[%clk 0:00:49]} 29. a5 {[%clk 0:01:06]}  bxa5 {[%clk 0:00:43]} 30. Rd2 {[%clk 0:01:02]}  Rxd2 {[%clk 0:00:40]} 31. Bxd2 {[%clk 0:01:03]}  Rb8 {[%clk 0:00:40]} 32. Bc3 {[%clk 0:01:04]}  Rb5 {[%clk 0:00:37]} 33. f3 {[%clk 0:00:35]}  Nd7 {[%clk 0:00:37]} 34. Bxa5 {[%clk 0:00:28]}  Rxb2 {[%clk 0:00:36]} 35. Bc3 {[%clk 0:00:27]}  Ra2 {[%clk 0:00:35]} 36. Rb1 {[%clk 0:00:27]}  Rc2 {[%clk 0:00:34]} 37. Ba5 {[%clk 0:00:20]}  a6 {[%clk 0:00:30]} 38. Rb7 {[%clk 0:00:19]}  Bb5 {[%clk 0:00:30]} 39. Bb4+ {[%clk 0:00:20]}  Kf7 {[%clk 0:00:29]} 40. Nh5 {[%clk 0:00:20]}  Rc4 {[%clk 0:00:28]} 41. Bd6 {[%clk 0:00:19]}  Rxd4 {[%clk 0:00:27]} 42. Kh2 {[%clk 0:00:14]}  Rd2 {[%clk 0:00:23]} 43. Kg1 {[%clk 0:00:12]}  g5 {[%clk 0:00:21]} 44. f4 {[%clk 0:00:10]}  Kg6 {[%clk 0:00:20]} 45. g4 {[%clk 0:00:10]}  Rd3 {[%clk 0:00:18]} 46. Kh2 {[%clk 0:00:10]}  Rd2+ {[%clk 0:00:19]} 47. Kg1 {[%clk 0:00:11]}  d4 {[%clk 0:00:19]} 48. Ra7 {[%clk 0:00:09]}  Rd1+ {[%clk 0:00:20]} 49. Kh2 {[%clk 0:00:09]}  Rd3 {[%clk 0:00:20]} 50. Ra8 {[%clk 0:00:08]}  Kf7 {[%clk 0:00:19]} 51. Rh8 {[%clk 0:00:08]}  Rd2+ {[%clk 0:00:20]} 52. Kg1 {[%clk 0:00:09]}  Rd1+ {[%clk 0:00:20]} 53. Kh2 {[%clk 0:00:09]}  d3 {[%clk 0:00:20]} 54. Rh7+ {[%clk 0:00:09]}  Ke8 {[%clk 0:00:20]} 55. Ng7+ {[%clk 0:00:08]}  Kd8 {[%clk 0:00:19]} 56. Rh8+ {[%clk 0:00:09]}  Nf8 {[%clk 0:00:18]} 57. Bxf8 {[%clk 0:00:09]}  Kd7 {[%clk 0:00:19]} 58. Bb4 {[%clk 0:00:06]}  d2 {[%clk 0:00:19]} 59. Bxd2 {[%clk 0:00:06]}  Rxd2+ {[%clk 0:00:20]} 60. Kg1 {[%clk 0:00:07]}  gxf4 {[%clk 0:00:20]} 61. Rxh6 {[%clk 0:00:06]}  f3 {[%clk 0:00:20]} 62. Rf6 {[%clk 0:00:06]}  Bc6 {[%clk 0:00:21]} 63. Nh5 {[%clk 0:00:05]}  a5 {[%clk 0:00:20]} 64. g5 {[%clk 0:00:05]}  Rg2+ {[%clk 0:00:20]} 65. Kf1 {[%clk 0:00:04]}  Rxg5 {[%clk 0:00:21]} 66. Nf4 {[%clk 0:00:04]}  Rf5 {[%clk 0:00:20]} 67. Rxf5 {[%clk 0:00:05]}  exf5 {[%clk 0:00:21]} 68. Kf2 {[%clk 0:00:03]}  Be4 {[%clk 0:00:21]} 69. Nd3 {[%clk 0:00:04]}  Bxd3 {[%clk 0:00:21]} 70. Ke3 {[%clk 0:00:05]}  Be4 {[%clk 0:00:20]} 71. h4 {[%clk 0:00:05]}  Ke7 {[%clk 0:00:21]} 72. Kf4 {[%clk 0:00:06]}  Kf6 {[%clk 0:00:21]} 73. h5 {[%clk 0:00:07]}  f2 {[%clk 0:00:21]} 74. h6 {[%clk 0:00:08]}  f1=Q+ {[%clk 0:00:21]} 75. Ke3 {[%clk 0:00:09]}  Qd3+ {[%clk 0:00:21]} 76. Kf2 {[%clk 0:00:08]}  Qf3+ {[%clk 0:00:22]} 77. Ke1 {[%clk 0:00:09]}  Qe3+ {[%clk 0:00:22]} 78. Kf1 {[%clk 0:00:10]}  Qd2 {[%clk 0:00:22]} 79. Kg1 {[%clk 0:00:10]}  Qg2# {[%clk 0:00:22]} 0-1


[Site "https://www.chess.com"]

[Event "Titled Tuesday Blitz January 25 2022"]
[White "Nasyrova, Ekaterina"]
[Black "Golubev, Mikhail"]
[WhiteFideId "44157797"]
[BlackFideId "14100983"]
[WhiteElo "2068"]
[BlackElo "2374"]
[Result "0-1"]
[Round "05"]
[TimeControl "180+1"]
[Date "2022.01.26"]
[WhiteClock "0:00:23"]
[BlackClock "0:00:37"]

1. d4 {[%clk 0:03:00]}  Nf6 {[%clk 0:02:59]} 2. c4 {[%clk 0:02:59]}  g6 {[%clk 0:02:58]} 3. g3 {[%clk 0:02:58]}  Bg7 {[%clk 0:02:59]} 4. Bg2 {[%clk 0:02:59]}  O-O {[%clk 0:02:59]} 5. Nc3 {[%clk 0:02:58]}  d6 {[%clk 0:02:59]} 6. Nf3 {[%clk 0:02:58]}  Nbd7 {[%clk 0:03:00]} 7. O-O {[%clk 0:02:58]}  e5 {[%clk 0:02:59]} 8. e4 {[%clk 0:02:58]}  Re8 {[%clk 0:02:59]} 9. Re1 {[%clk 0:02:55]}  exd4 {[%clk 0:02:54]} 10. Nxd4 {[%clk 0:02:55]}  c6 {[%clk 0:02:53]} 11. b3 {[%clk 0:02:40]}  Nc5 {[%clk 0:02:34]} 12. f3 {[%clk 0:02:26]}  d5 {[%clk 0:02:23]} 13. cxd5 {[%clk 0:02:04]}  Nxd5 {[%clk 0:01:49]} 14. Nxd5 {[%clk 0:01:51]}  cxd5 {[%clk 0:01:47]} 15. Be3 {[%clk 0:01:44]}  dxe4 {[%clk 0:01:35]} 16. fxe4 {[%clk 0:01:04]}  Nxe4 {[%clk 0:01:25]} 17. Rc1 {[%clk 0:01:03]}  Bg4 {[%clk 0:01:19]} 18. Qxg4 {[%clk 0:00:49]}  Bxd4 {[%clk 0:01:17]} 19. Bxe4 {[%clk 0:00:42]}  Bxe3+ {[%clk 0:01:07]} 20. Rxe3 {[%clk 0:00:41]}  f5 {[%clk 0:01:07]} 21. Bxf5 {[%clk 0:00:24]}  Rxe3 {[%clk 0:01:04]} 22. Be6+ {[%clk 0:00:24]}  Kh8 {[%clk 0:00:50]} 23. Rf1 {[%clk 0:00:23]}  Qb6 {[%clk 0:00:37]} 0-1


[Site "https://www.chess.com"]